bitfinex/quotes_ETHUSD_20211001
["timestamp","ask_amount","ask_price","bid_price","bid_amount"]
[1633050842918,0.023974,3002.4,3001.8,3.33179]
[1633050843117,0.003,3002.5,3001.8,3.33179]
[1633050843321,0.003,3002.5,3002.3,0.83614335]
[1633050844118,8.89670423,3003.0,3002.3,0.83614335]
[1633050844319,8.89670423,3003.0,3002.3,4.16646335]
[1633050844518,8.89670423,3003.0,3002.4,1.2]
[1633050844726,0.78999871,3002.8,3002.4,1.2]
[1633050844920,0.78999871,3002.8,3002.4,0.2]
[1633050845119,8.89670423,3003.0,3002.5,3.33028]
[1633050845320,8.89670423,3003.0,3002.5,3.62836983]
[1633050845522,1.294,3002.8,3002.5,0.29808983]
[1633050845721,1.8303,3002.9,3002.5,0.29808983]
[1633050846124,0.81768698,3002.7,3002.2,1.63184121]
[1633050846721,0.81768698,3002.7,3002.3,3.33099]
[1633050846921,0.81768698,3002.7,3002.5,3.33099]
[1633050847422,8.89670423,3003.0,3002.6,1.0]
[1633050847821,8.89670423,3003.0,3002.6,5.99553]
[1633050848625,8.89670423,3003.0,3002.7,1.46383857]
[1633050849427,8.89670423,3003.0,3002.7,1.66383857]
[1633050850328,8.89670423,3003.0,3002.8,4.99516]
[1633050850528,8.89670423,3003.0,3002.7,1.66383857]
[1633050850730,8.89670423,3003.0,3002.8,0.29804235]
[1633050851128,8.89670423,3003.0,3002.8,1.29804235]
[1633050851728,8.89670423,3003.0,3002.8,1.0]
[1633050852328,8.89670423,3003.0,3002.8,9.32492]
[1633050852531,8.89670423,3003.0,3002.9,0.00095207]
[1633050856135,8.89670423,3003.0,3002.9,0.29896277]
[1633050857132,8.89670423,3003.0,3002.9,0.00095207]
[1633050861538,8.89670423,3003.0,3002.9,0.77904954]
[1633050861739,8.89670423,3003.0,3002.9,2.79119171]
[1633050861936,8.89670423,3003.0,3002.9,0.29896277]
[1633050863939,8.89670423,3003.0,3002.9,0.00095207]
[1633050867140,8.89670423,3003.0,3002.9,0.29896277]
[1633050869142,9.76109251,3003.0,3002.9,0.29896277]
[1633050869341,9.76109251,3003.0,3002.9,0.00095207]
[1633050870143,8.89670423,3003.0,3002.9,0.00095207]
[1633050872746,8.89670423,3003.0,3002.9,0.29896277]
[1633050873346,5.86698098,3003.1,3003.0,3.2799864]
[1633050873545,1.20266483,3003.7,3003.5,3.13300462]
[1633050873748,1.294,3003.6,3003.5,3.13300462]
[1633050874349,2.05119245,3003.6,3003.5,3.13300462]
[1633050875146,3.13300462,3003.5,3003.0,0.38742913]
[1633050875549,1.294,3003.3,3003.0,0.38742913]
[1633050875746,3.13300462,3003.5,3003.0,0.38742913]
[1633050876347,4.9968,3003.3,3003.0,0.38742913]
[1633050878148,4.9968,3003.3,3003.1,0.29793159]
[1633050880149,4.9968,3003.3,3003.0,0.38742913]
[1633050880150,1.294,3003.2,3003.0,0.38742913]
[1633050880349,4.9968,3003.3,3003.0,0.38742913]
[1633050882213,1.294,3003.2,3003.0,0.38742913]
[1633050882350,7.40480198,3003.4,3003.0,0.38742913]
[1633050882551,7.04874913,3002.9,3002.5,0.003]
[1633050882753,0.029616,3002.6,3002.5,0.003]
[1633050882952,0.229616,3002.6,3002.0,0.006]
[1633050883152,0.229616,3002.6,3001.7,0.57370994]
[1633050883153,1.294,3002.3,3001.7,0.006]
[1633050883351,1.0349,3002.4,3001.8,0.006]
[1633050883552,4.99816,3002.1,3002.0,0.29827978]
[1633050883751,4.99456,3002.1,3002.0,0.29827978]
[1633050883951,4.99456,3002.1,3002.0,0.30427978]
[1633050884756,1.5964,3002.1,3002.0,0.30427978]
[1633050884951,7.04874913,3002.9,3002.0,0.30427978]
[1633050885153,7.04874913,3002.9,3002.2,6.66271]
[1633050885355,7.82728373,3002.9,3002.3,0.71609988]
[1633050885552,7.82728373,3002.9,3002.3,0.953]
[1633050885755,4.9969,3002.8,3002.4,0.003]
[1633050886954,8.982592,3002.9,3002.3,0.003]
[1633050887153,7.04874913,3002.9,3002.3,0.003]
[1633050887357,7.04874913,3002.9,3002.7,0.90026175]
[1633050888219,7.04874913,3002.9,3002.8,7.23317095]
[1633050888353,7.04874913,3002.9,3002.8,1.93317095]
[1633050888554,7.04874913,3002.9,3002.8,4.22717095]
[1633050888756,6.11294913,3002.9,3002.8,3.22717095]
[1633050888958,6.11294913,3002.9,3002.8,4.22717095]
[1633050889155,3.13600462,3003.5,3002.9,3.13136486]
[1633050889355,3.13600462,3003.5,3002.9,5.76234815]
[1633050889553,3.13600462,3003.5,3003.0,1.0]
[1633050890157,3.13600462,3003.5,3003.3,2.51360578]
[1633050891054,3.13600462,3003.5,3003.3,0.79829474]
[1633050892854,3.13600462,3003.5,3003.4,1.72965216]
[1633050893255,3.13600462,3003.5,3003.4,1.67965216]
[1633050893455,3.13600462,3003.5,3003.3,0.79829474]
[1633050893654,3.13600462,3003.5,3003.3,2.39829474]
[1633050894055,3.13600462,3003.5,3003.3,1.6]
[1633050894455,1.46051132,3003.4,3003.3,1.6]
[1633050894857,3.13600462,3003.5,3003.3,1.6]
[1633050900060,3.13600462,3003.5,3003.4,0.29786831]
[1633050901264,3.13600462,3003.5,3003.3,1.6]
[1633050902264,3.13600462,3003.5,3003.3,1.5]
[1633050903721,8.13175462,3003.5,3003.3,1.5]
[1633050904121,0.93476115,3003.4,3003.3,1.5]
[1633050905325,2.55916115,3003.4,3003.3,1.5]
[1633050905529,2.55916115,3003.4,3003.3,1.77148843]
[1633050906727,2.57953107,3003.4,3003.3,1.5]
[1633050908024,2.61253107,3003.4,3003.3,1.5]
[1633050909426,1.67776992,3003.4,3003.3,1.5]
[1633050910226,0.05336992,3003.4,3003.3,1.5]
[1633050911028,0.033,3003.4,3003.3,1.77148843]
[1633050911227,0.16652528,3003.5,3003.3,1.77148843]
[1633050911428,1.40266483,3003.7,3003.4,2.98499175]
[1633050911429,1.20266483,3003.7,3003.4,2.98499175]
[1633050911629,1.20266483,3003.7,3003.4,0.2]
[1633050912028,1.20266483,3003.7,3003.4,2.84598873]
[1633050912330,1.20266483,3003.7,3003.5,8.72439024]
[1633050912538,1.20266483,3003.7,3003.6,0.2]
[1633050912731,0.003,3004.5,3003.6,0.83103751]
[1633050912931,0.003,3004.5,3003.7,2.7790168]
[1633050913130,0.003,3004.5,3003.7,2.9790168]
[1633050913331,0.003,3004.5,3004.3,0.91810794]
[1633050913532,0.003,3004.5,3004.2,3.32908]
[1633050913738,4.99731,3004.5,3004.2,3.32908]
[1633050914532,0.78476783,3004.4,3004.2,3.32908]
[1633050914930,0.02058104,3004.4,3004.2,3.32908]
[1633050915737,1.97907916,3004.7,3004.2,3.32908]
[1633050915933,1.36479198,3004.6,3004.5,0.82240351]
[1633050916133,2.68,3005.3,3004.5,3.76661557]
[1633050916134,0.003,3005.0,3004.5,3.76661557]
[1633050916530,0.003,3005.0,3004.5,4.04802554]
[1633050917131,0.97359407,3004.9,3004.6,3.32858]
[1633050917731,0.003,3004.7,3004.6,3.32858]
[1633050918131,0.003,3004.7,3004.6,6.12312022]
[1633050918331,0.003,3004.7,3004.6,7.12312022]
[1633050918532,2.46036723,3005.3,3004.7,3.7]
[1633050918734,2.48,3005.1,3004.8,0.2]
[1633050918932,2.48,3005.1,3004.8,1.2]
[1633050919131,2.48,3005.1,3004.8,0.2]
[1633050919332,2.48,3005.1,3004.8,1.2]
[1633050919933,2.48,3005.1,3005.0,3.3281]
[1633050920132,2.6311327,3005.1,3005.0,3.3281]
[1633050921934,2.48,3005.1,3005.0,3.3281]
[1633050923133,0.003,3005.5,3005.0,8.29836007]
[1633050923333,0.003,3005.5,3005.0,9.86185209]
[1633050923534,0.003,3005.5,3005.1,1.0]
[1633050923734,0.003,3005.5,3005.2,0.2]
[1633050923935,0.003,3005.5,3005.3,1.294]
[1633050924133,0.003,3005.5,3005.4,5.62327435]
[1633050924333,0.003,3005.5,3005.4,7.30878145]
[1633050924535,0.003,3006.0,3005.5,8.9]
[1633050924732,0.003,3006.0,3005.6,3.51964227]
[1633050924932,0.003,3006.0,3005.7,0.2]
[1633050925133,0.003,3006.5,3006.4,1.7580907]
[1633050925332,0.003,3006.5,3006.4,1.9580907]
[1633050925532,0.003,3006.5,3006.4,0.84112972]
[1633050925736,0.003,3006.5,3006.4,0.2]
[1633050926536,0.003,3006.5,3006.3,3.32607]
[1633050926537,2.35329294,3006.5,3006.3,3.32607]
[1633050927132,0.003,3006.5,3006.3,3.32607]
[1633050927534,0.003,3006.5,3006.4,0.14013671]
[1633050929734,0.003,3006.5,3006.4,3.96308559]
[1633050930333,0.003,3006.5,3006.4,1.14013671]
[1633050930933,173.0,3006.8,3006.4,6.12925671]
[1633050931334,0.15143844,3006.5,3006.4,5.98912]
[1633050932133,0.003,3007.0,3006.4,5.98912]
[1633050932537,0.003,3007.0,3006.4,1.0]
[1633050932538,0.97466441,3006.9,3006.4,1.0]
[1633050932733,0.97466441,3006.9,3006.5,0.2157485]
[1633050933537,1.50446065,3007.0,3006.5,0.2157485]
[1633050933735,1.50446065,3007.0,3006.7,3.32627]
[1633050933934,0.003,3007.0,3006.7,3.32627]
[1633050934534,0.8520544,3007.0,3006.7,3.32627]
[1633050934736,0.003,3007.0,3006.7,3.32627]
[1633050934934,1.75109273,3007.0,3006.7,3.32627]
[1633050935135,0.003,3007.0,3006.7,3.32627]
[1633050935739,0.003,3007.0,3006.8,1.0]
[1633050936738,0.003,3007.0,3006.9,5.894]
[1633050936942,0.07882473,3007.0,3006.9,4.55]
[1633050937138,0.07882473,3007.0,3006.9,1.2]
[1633050938137,0.003,3007.0,3006.9,1.2]
[1633050939544,0.00388949,3007.0,3006.9,1.2]
[1633050940540,0.00388949,3007.0,3006.9,2.494]
[1633050940941,0.00388949,3007.0,3006.9,1.2]
[1633050942147,0.003,3007.0,3006.9,1.2]
[1633050942344,0.07882527,3007.0,3006.9,1.2]
[1633050942744,0.07882527,3007.0,3006.9,1.73449685]
[1633050943144,0.07882527,3007.0,3006.9,1.2]
[1633050943345,0.07882527,3007.0,3006.9,1.74975324]
[1633050943543,0.07882527,3007.0,3006.9,1.6583058]
[1633050943745,0.003,3007.0,3006.9,1.84509155]
[1633050943945,0.003,3007.0,3006.9,1.70044808]
[1633050944144,0.003,3007.0,3006.9,1.85230209]
[1633050944346,0.003,3007.0,3006.9,1.2]
[1633050944548,0.003,3007.0,3006.8,3.3257]
[1633050947745,0.003,3007.0,3006.8,8.31435]
[1633050947746,0.07882581,3007.0,3006.8,8.31435]
[1633050947945,0.07882581,3007.0,3006.8,3.3257]
[1633050949149,0.003,3007.0,3006.8,3.3257]
[1633050949348,0.003,3007.0,3006.9,0.21568712]
[1633050949953,1.320974,3007.0,3006.9,0.21568712]
[1633050950149,0.88959863,3006.3,3005.8,0.2]
[1633050950349,2.09369863,3006.3,3005.6,4.08357378]
[1633050950551,2.11876357,3006.3,3005.9,0.003]
[1633050950748,1.22916494,3006.3,3005.7,0.003]
[1633050951351,0.02506494,3006.3,3006.1,1.65011837]
[1633050951554,6.6543,3006.8,3006.1,1.65011837]
[1633050951751,0.2,3006.9,3006.1,1.65011837]
[1633050951752,0.2,3006.9,3006.5,0.82178576]
[1633050951950,0.026974,3007.0,3006.1,1.65011837]
[1633050952351,1.82459694,3006.6,3006.1,1.65011837]
[1633050952552,4.99005,3006.9,3006.1,2.65011837]
[1633050952750,0.026974,3007.0,3006.3,3.32654]
[1633050952952,0.026974,3007.0,3006.5,3.32661]
[1633050953351,0.21061241,3007.0,3006.5,3.32661]
[1633050953554,1.85442007,3006.7,3006.5,3.32661]
[1633050953751,0.21061241,3007.0,3006.5,3.32661]
[1633050954152,0.21061241,3007.0,3006.7,3.32621]
[1633050954352,0.18663841,3007.0,3006.5,3.32661]
[1633050954753,0.74846815,3007.1,3006.8,0.10785891]
[1633050954754,0.70146815,3007.1,3006.8,0.10785891]
[1633050954955,1.50960985,3006.9,3006.8,0.10785891]
[1633050955357,2.80360985,3006.9,3006.8,0.10785891]
[1633050955554,4.59740985,3006.9,3006.8,0.10785891]
[1633050955755,41.59740985,3006.9,3006.8,0.10785891]
[1633050956157,41.59740985,3006.9,3006.8,0.05066982]
[1633050956158,4.59740985,3006.9,3006.8,0.05066982]
[1633050956559,2.80360985,3006.9,3006.8,0.05066982]
[1633050956765,2.80360985,3006.9,3006.8,1.65066982]
[1633050958760,3.01585384,3006.9,3006.8,1.6]
[1633050958959,2.91585384,3006.9,3006.8,1.6]
[1633050959961,3.11585384,3006.9,3006.8,1.6]
[1633050960362,2.90360985,3006.9,3006.8,1.67927971]
[1633050960962,3.90360985,3006.9,3006.8,1.67927971]
[1633050961961,1.60960985,3006.9,3006.8,1.67927971]
[1633050962264,4.98948,3007.2,3006.8,1.67927971]
[1633050963262,6.72004367,3007.2,3006.9,3.32631]
[1633050964461,0.21228652,3007.1,3006.9,3.32631]
[1633050965864,5.78312869,3007.2,3007.0,0.07921833]
[1633050966064,4.98955,3007.1,3007.0,0.07921833]
[1633050968065,9.9799222,3007.2,3007.0,0.07921833]
[1633050968267,3.3266622,3007.2,3007.0,0.07921833]
[1633050968466,8.3160822,3007.2,3007.0,0.07921833]
[1633050969268,1.69065291,3007.1,3007.0,0.07921833]
[1633050969867,1.90295046,3007.1,3006.8,1.6]
[1633050970068,1.90295046,3007.1,3006.8,4.9265]
[1633050970668,0.21229755,3007.1,3006.8,4.9265]
[1633050971269,3.3266622,3007.2,3006.9,0.07923367]
[1633050971469,0.003,3007.5,3006.9,0.02923367]
[1633050971671,0.003,3007.5,3007.2,1.57830166]
[1633050972327,0.003,3007.5,3007.0,4.98841]
[1633050972526,0.003,3007.5,3007.1,0.81944738]
[1633050972927,0.003,3007.5,3007.3,3.32561]
[1633050973430,0.003,3007.5,3007.1,3.32584]
[1633050973826,0.003,3007.5,3007.1,4.9383968]
[1633050974226,0.003,3007.5,3007.1,3.32584]
[1633050975432,5.22935056,3007.5,3007.1,3.32584]
[1633050976228,1.00328648,3007.3,3007.1,3.32584]
[1633050976427,0.24035056,3007.5,3007.1,3.32584]
[1633050976827,0.24035056,3007.5,3007.2,0.05417231]
[1633050976828,8.3158811,3007.3,3007.2,0.05417231]
[1633050977027,3.3263511,3007.3,3007.2,0.05417231]
[1633050977628,0.003,3007.5,3007.2,0.05417231]
[1633050978231,0.003,3007.5,3007.2,3.37961231]
[1633050980831,0.003,3007.5,3007.2,3.32544]
[1633050980832,0.24036159,3007.5,3007.2,3.32544]
[1633050981033,5.22926159,3007.5,3007.2,3.32544]
[1633050981632,1.50847898,3007.4,3007.2,3.32544]
[1633050981832,0.24036159,3007.5,3007.2,3.32544]
[1633050982233,0.003,3007.5,3007.3,0.05412629]
[1633050983434,0.003,3007.5,3007.4,1.294]
[1633050984635,0.003,3007.5,3007.3,1.05412629]
[1633050984834,0.003,3007.5,3007.4,1.294]
[1633050986237,0.24038311,3007.5,3007.4,1.294]
[1633050987843,2.43598966,3008.4,3007.5,9.59028401]
[1633050988045,0.003,3008.5,3007.9,1.344161]
[1633050988245,0.003,3008.5,3008.0,3.55966241]
[1633050988442,0.003,3008.5,3008.1,1.0]
[1633050988642,0.003,3008.5,3008.2,0.2]
[1633050988842,0.003,3008.5,3008.3,0.49909493]
[1633050989045,0.003,3008.5,3008.4,4.38211977]
[1633050989243,0.003,3008.5,3008.4,11.71907559]
[1633050989443,0.003,3008.5,3008.4,12.71907559]
[1633050989842,0.003,3008.5,3008.4,9.84560414]
[1633050990444,0.003,3008.5,3008.4,12.69064409]
[1633050990644,0.003,3008.5,3008.4,9.84560414]
[1633050991247,0.003,3008.5,3008.4,12.69917605]
[1633050991846,2.97195092,3009.6,3008.5,7.2]
[1633050992045,2.97195092,3009.6,3008.6,4.30054469]
[1633050992046,1.91739825,3009.5,3008.6,4.30054469]
[1633050992245,3.70775179,3009.5,3009.0,0.003]
[1633050992645,0.71733096,3009.3,3009.0,0.003]
[1633050993045,0.71733096,3009.3,3008.7,0.003]
[1633050993246,0.71733096,3009.3,3009.1,1.79743977]
[1633050993647,0.71733096,3009.3,3009.1,6.78239977]
[1633050994046,0.53591713,3009.7,3009.1,6.78239977]
[1633050994251,0.53591713,3009.7,3009.2,2.85613084]
[1633050994451,1.91576248,3009.7,3009.2,2.85613084]
[1633050994648,1.3805227,3009.6,3009.2,2.85613084]
[1633050994849,0.81624906,3009.5,3009.1,1.79743977]
[1633050995049,1.38051559,3009.4,3009.1,1.79743977]
[1633050995451,1.38051559,3009.4,3009.2,3.32321]
[1633050995651,1.38051559,3009.4,3009.1,0.05358972]
[1633050995850,1.294,3009.3,3009.1,0.05358972]
[1633050996050,1.294,3009.3,3009.1,0.02255511]
[1633050996051,1.9522451,3009.2,3009.1,0.02255511]
[1633050996254,6.40347314,3009.2,3009.1,0.02255511]
[1633050996651,7.82522449,3009.2,3009.1,1.62255511]
[1633050997050,8.36216668,3009.2,3009.1,1.62255511]
[1633050997252,9.65616668,3009.2,3009.1,1.6]
[1633050997450,9.90941422,3009.2,3009.1,1.6]
[1633050997652,8.61541422,3009.2,3009.1,1.6]
[1633050997851,4.12212668,3009.2,3008.3,3.32394]
[1633050998053,2.92145029,3009.1,3008.3,3.32394]
[1633050998252,0.84899603,3008.6,3008.4,0.006]
[1633050998851,0.84899603,3008.6,3008.5,0.03824098]
[1633050999251,0.84899603,3008.6,3008.5,0.04424098]
[1633051000051,1.54028815,3008.9,3008.5,0.04424098]
[1633051000252,1.3815428,3008.8,3008.5,0.04424098]
[1633051000452,4.41728799,3009.3,3008.6,0.003]
[1633051000453,2.11200307,3009.3,3008.6,0.003]
[1633051000652,1.38315732,3009.2,3008.6,0.003]
[1633051001152,1.38315732,3009.2,3008.6,0.82016209]
[1633051001353,1.38315732,3009.2,3008.8,5.23093449]
[1633051001555,1.38315732,3009.2,3008.8,3.32411]
[1633051001753,1.38315732,3009.2,3008.9,0.003]
[1633051002353,6.36946732,3009.2,3008.9,0.003]
[1633051002554,1.38379428,3009.1,3008.9,0.003]
[1633051002752,0.25322712,3009.1,3008.9,0.003]
[1633051004954,3.3242759,3009.2,3009.0,0.03810306]
[1633051005154,3.34923481,3009.2,3009.0,0.03810306]
[1633051005355,3.34923481,3009.2,3009.0,0.04110306]
[1633051005356,1.38427771,3009.1,3009.0,0.04110306]
[1633051006154,6.37079771,3009.1,3009.0,0.04110306]
[1633051008353,6.62402537,3009.1,3009.0,0.003]
[1633051008554,7.91802537,3009.1,3009.0,0.003]
[1633051008956,6.57402537,3009.1,3009.0,0.003]
[1633051010353,6.32079771,3009.1,3009.0,0.04108774]
[1633051010555,7.61479771,3009.1,3009.0,0.04108774]
[1633051010754,6.32079771,3009.1,3009.0,0.04108774]
[1633051012757,6.32079771,3009.1,3008.9,1.6]
[1633051012758,5.8,3009.0,3008.9,1.6]
[1633051012958,1.0,3009.0,3008.9,1.6]
[1633051013559,1.023974,3009.1,3008.9,1.6]
[1633051013759,7.07226158,3009.0,3008.9,1.6]
[1633051013959,1.27226158,3009.0,3008.9,1.6]
[1633051014159,7.92303158,3009.0,3008.9,1.6]
[1633051014359,6.92303158,3009.0,3008.9,1.6]
[1633051014759,0.27226158,3009.0,3008.9,1.6]
[1633051015561,5.25898158,3009.0,3008.9,1.6]
[1633051015761,4.98672,3009.0,3008.9,1.6]
[1633051017566,1.63416023,3008.6,3008.3,3.32454]
[1633051017966,1.63416023,3008.6,3008.4,0.003]
[1633051018365,4.95921433,3008.6,3007.9,0.006]
[1633051018563,4.98802,3008.2,3007.8,0.006]
[1633051019164,3.97782378,3007.7,3007.6,0.006]
[1633051019366,0.92782378,3007.7,3007.6,0.006]
[1633051019970,2.46917331,3007.7,3007.6,0.006]
[1633051020972,1.00861122,3007.5,3007.0,0.003]
[1633051021171,1.00861122,3007.5,3006.5,0.006]
[1633051021172,0.023974,3007.1,3006.5,0.006]
[1633051021369,0.023974,3007.1,3006.2,0.006]
[1633051021568,2.02494148,3006.5,3006.2,0.7838489]
[1633051021768,2.02494148,3006.5,3006.1,1.5977284]
[1633051021769,2.02494148,3006.5,3006.1,0.006]
[1633051022070,2.02494148,3006.5,3006.3,0.006]
[1633051022270,4.99071,3006.6,3006.3,0.006]
[1633051022471,0.92199456,3006.9,3006.3,0.006]
[1633051022673,0.92199456,3006.9,3006.1,0.006]
[1633051022872,0.92199456,3006.9,3006.1,4.25381304]
[1633051023273,4.99075,3006.6,3006.2,0.006]
[1633051023473,6.78823557,3006.6,3006.2,1.83068759]
[1633051023676,4.99075,3006.6,3006.2,1.83068759]
[1633051023874,11.314974,3007.1,3006.5,3.32639]
[1633051024074,2.68261122,3007.5,3006.5,3.32639]
[1633051024075,1.00861122,3007.5,3006.5,3.32639]
[1633051024275,1.00861122,3007.5,3006.6,4.99199]
[1633051024475,1.00861122,3007.5,3006.6,0.003]
[1633051024676,1.2804648,3007.5,3007.3,1.77006335]
[1633051024877,1.2804648,3007.5,3007.4,0.98611971]
[1633051025077,1.2804648,3007.5,3007.2,3.32556]
[1633051025277,1.2804648,3007.5,3006.6,0.003]
[1633051025278,6.2697848,3007.5,3006.6,0.003]
[1633051025477,6.2697848,3007.5,3006.9,0.003]
[1633051026079,0.83204674,3007.2,3006.9,0.003]
[1633051026338,4.99016,3007.1,3006.9,0.003]
[1633051026539,4.99016,3007.1,3006.6,0.003]
[1633051026938,4.99016,3007.1,3007.0,0.02636322]
[1633051027139,6.65355,3007.3,3007.0,0.02636322]
[1633051027337,4.33533282,3007.5,3007.0,0.02936322]
[1633051027338,1.00861122,3007.5,3007.0,0.02936322]
[1633051028339,1.00861122,3007.5,3007.0,0.78076019]
[1633051028739,2.77880603,3007.5,3007.0,0.78076019]
[1633051029559,1.00861122,3007.5,3007.0,5.76915019]
[1633051029953,1.00861122,3007.5,3007.0,0.75439697]
[1633051030153,1.28051781,3007.5,3007.0,0.75439697]
[1633051031760,1.28051781,3007.5,3007.0,2.35439697]
[1633051032157,1.28051781,3007.5,3007.0,1.603]
[1633051032358,1.28051781,3007.5,3007.1,0.02636103]
[1633051032359,6.94844501,3007.2,3007.1,0.02636103]
[1633051033762,6.97241901,3007.2,3007.1,0.02636103]
[1633051033960,7.97241901,3007.2,3007.1,0.02636103]
[1633051034161,6.97241901,3007.2,3007.1,0.02636103]
[1633051035564,7.97241901,3007.2,3007.1,0.02636103]
[1633051035766,8.24429465,3007.2,3007.0,1.603]
[1633051035962,9.61252364,3007.2,3007.0,1.603]
[1633051036166,0.27187564,3007.2,3007.0,1.603]
[1633051037365,0.95779626,3007.1,3007.0,1.603]
[1633051037566,2.56959626,3007.1,3007.0,1.603]
[1633051038168,3.44693274,3007.1,3007.0,1.603]
[1633051038366,5.46748994,3007.1,3007.0,1.603]
[1633051040968,5.73935562,3007.1,3007.0,1.603]
[1633051041968,2.84146194,3007.1,3007.0,1.603]
[1633051042170,1.22966194,3007.1,3007.0,2.950356]
[1633051042367,1.22966194,3007.1,3007.0,1.656356]
[1633051042967,1.22966194,3007.1,3007.0,4.24367379]
[1633051043368,0.95779626,3007.1,3007.0,4.19031779]
[1633051043967,0.95779626,3007.1,3007.0,5.19031779]
[1633051044167,0.95779626,3007.1,3007.0,4.19031779]
[1633051044767,0.95779626,3007.1,3007.0,4.18518433]
[1633051046366,1.22966246,3007.1,3007.0,4.18518433]
[1633051049371,0.95779626,3007.1,3007.0,9.17366433]
[1633051050572,0.67540748,3007.5,3007.1,2.87338878]
[1633051050773,0.67540748,3007.5,3007.4,0.048827]
[1633051050972,0.67540748,3007.5,3007.4,0.248827]
[1633051051572,0.94735814,3007.5,3007.4,1.542827]
[1633051051772,0.94735814,3007.5,3007.4,0.248827]
[1633051051973,0.94735814,3007.5,3007.4,1.248827]
[1633051052573,0.94735814,3007.5,3007.4,2.542827]
[1633051052978,0.94735814,3007.5,3007.4,1.248827]
[1633051053236,0.94735814,3007.5,3007.4,1.2]
[1633051054180,0.94735814,3007.5,3007.4,2.494]
[1633051054577,0.94735814,3007.5,3007.4,1.2]
[1633051054780,0.67540748,3007.5,3007.4,1.2]
[1633051055379,0.67540748,3007.5,3007.4,2.494]
[1633051056082,0.003,3008.0,3007.7,3.3242556]
[1633051056282,0.003,3008.0,3007.8,5.18639]
[1633051056485,0.003,3008.0,3007.8,15.46749]
[1633051056882,0.003,3008.0,3007.8,17.21449774]
[1633051057080,0.003,3008.0,3007.9,1.64406807]
[1633051057280,0.003,3008.0,3007.9,1.84406807]
[1633051057681,0.003,3008.5,3007.9,7.17883182]
[1633051057981,0.003,3008.5,3008.4,0.061549]
[1633051058181,0.003,3008.5,3008.4,0.261549]
[1633051058581,0.003,3008.5,3008.4,1.72033763]
[1633051058781,0.003,3008.5,3008.4,6.70550763]
[1633051058982,0.003,3008.5,3008.4,7.70550763]
[1633051059584,0.003,3009.0,3008.7,0.86340516]
[1633051059784,0.003,3009.0,3008.9,1.58832197]
[1633051060182,0.003,3009.0,3008.9,2.58832197]
[1633051060383,0.003,3009.0,3008.9,2.61466854]
[1633051061783,0.003,3009.0,3008.9,5.46913818]
[1633051061983,0.003,3009.0,3008.9,2.81466854]
[1633051062586,0.27526635,3009.0,3008.9,2.78832197]
[1633051063388,0.27526635,3009.0,3008.9,23.46232197]
[1633051064589,0.27526635,3009.0,3008.9,4.08232197]
[1633051065247,0.27526635,3009.0,3008.9,23.46232197]
[1633051065794,0.003,3009.0,3008.9,23.46232197]
[1633051066794,0.003,3009.0,3008.9,25.06232197]
[1633051067393,0.003,3009.0,3008.9,31.68632197]
[1633051067593,0.003,3009.0,3008.9,39.68632197]
[1633051067792,0.003,3009.0,3008.9,40.34072314]
[1633051067994,0.003,3009.0,3008.9,40.29072314]
[1633051068249,0.27526688,3009.0,3008.9,41.30072314]
[1633051068592,0.27526688,3009.0,3008.9,40.29072314]
[1633051069994,0.27526688,3009.0,3008.9,33.66672314]
[1633051070194,0.27526688,3009.0,3008.9,33.06232197]
[1633051070394,0.27526688,3009.0,3008.9,31.76832197]
[1633051070596,0.27526688,3009.0,3008.9,33.06232197]
[1633051070795,0.27526688,3009.0,3008.9,31.76832197]
[1633051071395,0.003,3009.0,3008.9,31.76832197]
[1633051071798,0.003,3009.0,3008.9,33.06232197]
[1633051073596,0.003,3009.0,3008.9,13.68232197]
[1633051073795,0.27526742,3009.0,3008.9,12.38832197]
[1633051074255,0.27526742,3009.0,3008.9,4.38832197]
[1633051074396,0.27526742,3009.0,3008.9,12.38832197]
[1633051074599,0.27526742,3009.0,3008.9,4.38832197]
[1633051074998,0.27526742,3009.0,3008.9,12.38832197]
[1633051075398,0.27526742,3009.0,3008.9,31.76832197]
[1633051076398,0.27526742,3009.0,3008.9,12.38832197]
[1633051076798,0.003,3009.0,3008.9,12.38832197]
[1633051077282,0.003,3009.0,3008.9,31.81628797]
[1633051079000,0.003,3009.0,3008.9,33.11028797]
[1633051079203,0.003,3009.5,3009.0,10.75]
[1633051079402,0.003,3010.0,3009.4,5.045393]
[1633051079601,1.92964587,3010.8,3009.8,4.995]
[1633051079806,0.023974,3010.8,3009.9,0.2]
[1633051080000,0.023974,3010.8,3009.9,8.007]
[1633051080265,0.023974,3010.8,3009.9,2.957]
[1633051080401,0.023974,3010.8,3009.9,10.0644125]
[1633051080600,0.023974,3010.8,3009.9,7.0144125]
[1633051080801,0.023974,3010.8,3009.9,10.32868]
[1633051081001,0.023974,3010.8,3009.9,8.16875192]
[1633051081201,0.023974,3010.8,3009.9,14.81184192]
[1633051082403,0.023974,3010.8,3009.9,11.49016192]
[1633051082601,0.75547321,3011.0,3009.9,11.49016192]
[1633051082602,0.003,3011.0,3009.9,11.49016192]
[1633051083403,0.003,3011.5,3011.4,2.18513224]
[1633051083602,0.003,3012.0,3011.5,3.95]
[1633051083603,0.79306825,3011.9,3011.5,3.95]
[1633051083804,0.003,3012.0,3011.6,0.2]
[1633051084002,0.003,3012.0,3011.6,4.23739508]
[1633051084203,0.003,3012.0,3011.6,3.23739508]
[1633051084401,0.003,3012.0,3011.7,1.0]
[1633051084602,0.21713654,3012.0,3011.8,3.24584395]
[1633051084806,0.21713654,3012.0,3011.9,19.38]
[1633051085005,0.21713654,3012.0,3011.9,28.58]
[1633051085201,0.21713654,3012.0,3011.9,29.5027]
[1633051085403,0.11713654,3012.0,3011.9,29.5027]
[1633051085604,0.11713654,3012.0,3011.9,10.1227]
[1633051085803,0.11713654,3012.0,3011.9,1.2]
[1633051086002,0.11713654,3012.0,3011.9,0.2]
[1633051086003,1.41113654,3012.0,3011.9,0.2]